[Event "FIDE World Rapid Chess Championship 2021"]
[White "Postny, Evgeny"]
[Black "Zvjaginsev, Vadim"]
[WhiteFideId "2804344"]
[BlackFideId "4113403"]
[WhiteElo "2454"]
[BlackElo "2539"]
[Result "1/2-1/2"]
[Round "13"]
[TimeControl "900+10"]
[Date "2021.12.28"]
[WhiteClock "0:02:26"]
[BlackClock "0:03:52"]

1. d4 {[%clk 0:15:00]}  d6 {[%clk 0:15:00]} 2. Nf3 {[%clk 0:15:00]}  Nf6 {[%clk 0:15:00]} 3. c4 {[%clk 0:15:00]}  g6 {[%clk 0:15:00]} 4. Nc3 {[%clk 0:15:42]}  Bf5 {[%clk 0:15:19]} 5. Nd2 {[%clk 0:15:42]}  e5 {[%clk 0:15:19]} 6. d5 {[%clk 0:15:42]}  h5 {[%clk 0:15:19]} 7. e4 {[%clk 0:15:42]}  Bc8 {[%clk 0:15:19]} 8. Nf3 {[%clk 0:15:42]}  Nbd7 {[%clk 0:15:19]} 9. Be2 {[%clk 0:15:42]}  Bh6 {[%clk 0:14:03]} 10. Bxh6 {[%clk 0:15:04]}  Rxh6 {[%clk 0:14:03]} 11. Qd2 {[%clk 0:15:03]}  Rh8 {[%clk 0:14:03]} 12. Ng5 {[%clk 0:15:03]}  Nh7 {[%clk 0:14:03]} 13. Nxh7 {[%clk 0:15:03]}  Rxh7 {[%clk 0:14:03]} 14. g3 {[%clk 0:15:03]}  a5 {[%clk 0:14:03]} 15. O-O-O {[%clk 0:15:03]}  Nc5 {[%clk 0:13:28]} 16. f4 {[%clk 0:14:46]}  Qe7 {[%clk 0:13:28]} 17. Rde1 {[%clk 0:14:46]}  Bd7 {[%clk 0:13:28]} 18. Bd1 {[%clk 0:14:46]}  Kf8 {[%clk 0:11:45]} 19. Rhf1 {[%clk 0:14:26]}  Kg7 {[%clk 0:11:45]} 20. f5 {[%clk 0:14:26]}  gxf5 {[%clk 0:11:37]} 21. exf5 {[%clk 0:12:17]}  Qf6 {[%clk 0:11:37]} 22. Bc2 {[%clk 0:12:17]}  Kh8 {[%clk 0:11:37]} 23. Ne4 {[%clk 0:12:17]}  Nxe4 {[%clk 0:11:37]} 24. Rxe4 {[%clk 0:12:17]}  b6 {[%clk 0:11:37]} 25. Rh4 {[%clk 0:12:05]}  Rg8 {[%clk 0:10:23]} 26. Qe2 {[%clk 0:12:05]}  Rg4 {[%clk 0:10:29]} 27. Rxg4 {[%clk 0:08:38]}  hxg4 {[%clk 0:08:36]} 28. Rf2 {[%clk 0:08:38]}  Qg5+ {[%clk 0:08:36]} 29. Kb1 {[%clk 0:08:38]}  Rh6 {[%clk 0:08:36]} 30. a3 {[%clk 0:08:38]}  Kg7 {[%clk 0:07:50]} 31. Ka2 {[%clk 0:07:23]}  Kf8 {[%clk 0:07:50]} 32. Qe1 {[%clk 0:07:23]}  Ke7 {[%clk 0:07:50]} 33. c5 {[%clk 0:06:48]}  Kf8 {[%clk 0:06:55]} 34. cxb6 {[%clk 0:04:27]}  cxb6 {[%clk 0:06:55]} 35. Qc3 {[%clk 0:04:27]}  Rf6 {[%clk 0:06:55]} 36. Rf1 {[%clk 0:03:58]}  Kg7 {[%clk 0:04:21]} 37. Qd3 {[%clk 0:03:58]}  Rh6 {[%clk 0:04:21]} 38. Rf2 {[%clk 0:03:58]}  Rf6 {[%clk 0:03:52]} 39. Qe4 {[%clk 0:02:26]}  Bc8 {[%clk 0:03:52]} 40. Bd3 {[%clk 0:02:26]}  Bd7 {[%clk 0:03:52]} 41. Rf1 {[%clk 0:02:26]}  Bc8 {[%clk 0:03:52]} 42. Rf2 {[%clk 0:02:26]}  Bd7 {[%clk 0:03:52]} 43. Rf1 {[%clk 0:02:26]} 1/2-1/2


[Site "http://www.Chess.com"]

[Event "FIDE World Rapid Chess Championship 2021"]
[White "Durarbayli, Vasif"]
[Black "Kanarek, Marcel"]
[WhiteFideId "13402935"]
[BlackFideId "1126822"]
[WhiteElo "2532"]
[BlackElo "2296"]
[Result "1/2-1/2"]
[Round "13"]
[TimeControl "900+10"]
[Date "2021.12.28"]
[WhiteClock "0:05:56"]
[BlackClock "0:01:05"]

1. e4 {[%clk 0:15:00]}  c5 {[%clk 0:15:00]} 2. Nf3 {[%clk 0:15:00]}  e6 {[%clk 0:15:00]} 3. b3 {[%clk 0:15:00]}  Nc6 {[%clk 0:15:08]} 4. Bb2 {[%clk 0:15:44]}  a6 {[%clk 0:15:08]} 5. c4 {[%clk 0:15:44]}  Nf6 {[%clk 0:15:08]} 6. e5 {[%clk 0:15:44]}  Ng4 {[%clk 0:14:02]} 7. h3 {[%clk 0:15:26]}  Nh6 {[%clk 0:14:02]} 8. g4 {[%clk 0:15:26]}  d6 {[%clk 0:14:02]} 9. exd6 {[%clk 0:15:09]}  f6 {[%clk 0:11:07]} 10. d4 {[%clk 0:15:09]}  cxd4 {[%clk 0:11:07]} 11. Nxd4 {[%clk 0:15:09]}  Qxd6 {[%clk 0:09:58]} 12. Nxc6 {[%clk 0:14:21]}  Qxc6 {[%clk 0:09:58]} 13. Rg1 {[%clk 0:14:21]}  Nf7 {[%clk 0:09:58]} 14. Nc3 {[%clk 0:14:15]}  Bd7 {[%clk 0:05:09]} 15. Qe2 {[%clk 0:14:15]}  O-O-O {[%clk 0:05:09]} 16. O-O-O {[%clk 0:14:15]}  Bd6 {[%clk 0:04:13]} 17. Kb1 {[%clk 0:12:19]}  Qc7 {[%clk 0:04:13]} 18. Bg2 {[%clk 0:12:19]}  Be5 {[%clk 0:04:13]} 19. h4 {[%clk 0:11:43]}  Kb8 {[%clk 0:03:30]} 20. Be4 {[%clk 0:11:43]}  Bc6 {[%clk 0:03:30]} 21. Rxd8+ {[%clk 0:11:43]}  Nxd8 {[%clk 0:03:29]} 22. Rc1 {[%clk 0:09:09]}  Bxe4+ {[%clk 0:03:29]} 23. Qxe4 {[%clk 0:07:51]}  Nc6 {[%clk 0:01:50]} 24. Rd1 {[%clk 0:07:51]}  h5 {[%clk 0:01:50]} 25. Na4 {[%clk 0:07:51]}  Bxb2 {[%clk 0:01:50]} 26. Kxb2 {[%clk 0:07:51]}  Qe5+ {[%clk 0:01:38]} 27. Qxe5+ {[%clk 0:06:09]}  Nxe5 {[%clk 0:01:38]} 28. gxh5 {[%clk 0:06:09]}  Rxh5 {[%clk 0:01:38]} 29. Rd8+ {[%clk 0:06:09]}  Kc7 {[%clk 0:01:38]} 30. Rg8 {[%clk 0:06:09]}  g6 {[%clk 0:01:38]} 31. Nc5 {[%clk 0:05:56]}  Nxc4+ {[%clk 0:01:05]} 32. bxc4 {[%clk 0:05:56]}  Rxc5 {[%clk 0:01:05]} 33. Rxg6 {[%clk 0:05:56]}  Rxc4 {[%clk 0:01:05]} 34. Rxf6 {[%clk 0:05:56]}  Rxh4 {[%clk 0:01:05]} 1/2-1/2


[Site "http://www.Chess.com"]

[Event "FIDE World Rapid Chess Championship 2021"]
[White "Vastrukhin, Oleg"]
[Black "Pichot, Alan"]
[WhiteFideId "4192770"]
[BlackFideId "110973"]
[WhiteElo "2382"]
[BlackElo "2523"]
[Result "0-1"]
[Round "13"]
[TimeControl "900+10"]
[Date "2021.12.28"]
[WhiteClock "0:00:16"]
[BlackClock "0:01:36"]

1. Nf3 {[%clk 0:15:00]}  d5 {[%clk 0:15:00]} 2. g3 {[%clk 0:15:00]}  b6 {[%clk 0:15:00]} 3. Bg2 {[%clk 0:15:00]}  Bb7 {[%clk 0:15:00]} 4. O-O {[%clk 0:15:00]}  Nf6 {[%clk 0:15:00]} 5. d3 {[%clk 0:15:37]}  e6 {[%clk 0:15:56]} 6. Nbd2 {[%clk 0:15:37]}  c5 {[%clk 0:15:56]} 7. e4 {[%clk 0:15:37]}  Be7 {[%clk 0:15:56]} 8. Re1 {[%clk 0:15:37]}  Nc6 {[%clk 0:15:56]} 9. e5 {[%clk 0:15:37]}  Nd7 {[%clk 0:15:56]} 10. h4 {[%clk 0:15:37]}  Qc7 {[%clk 0:15:56]} 11. Qe2 {[%clk 0:15:37]}  O-O {[%clk 0:15:56]} 12. h5 {[%clk 0:15:37]}  h6 {[%clk 0:15:56]} 13. c4 {[%clk 0:15:38]}  Rfe8 {[%clk 0:14:56]} 14. Nf1 {[%clk 0:14:33]}  Bf8 {[%clk 0:14:56]} 15. Bf4 {[%clk 0:14:33]}  Ne7 {[%clk 0:12:26]} 16. Ne3 {[%clk 0:13:26]}  Rad8 {[%clk 0:12:26]} 17. Rac1 {[%clk 0:13:26]}  Bc6 {[%clk 0:12:26]} 18. b3 {[%clk 0:12:10]}  Qb7 {[%clk 0:10:49]} 19. g4 {[%clk 0:12:10]}  g5 {[%clk 0:10:47]} 20. hxg6 {[%clk 0:09:59]}  Nxg6 {[%clk 0:10:17]} 21. Bg3 {[%clk 0:08:39]}  d4 {[%clk 0:10:17]} 22. Nf5 {[%clk 0:08:47]}  Ndxe5 {[%clk 0:08:18]} 23. Nxe5 {[%clk 0:04:27]}  Bxg2 {[%clk 0:08:18]} 24. Nh4 {[%clk 0:03:51]}  Bc6 {[%clk 0:03:34]} 25. Nexg6 {[%clk 0:03:51]}  fxg6 {[%clk 0:03:34]} 26. Nxg6 {[%clk 0:03:51]}  Bf3 {[%clk 0:03:34]} 27. Qe5 {[%clk 0:01:46]}  Bg7 {[%clk 0:03:00]} 28. Qh5 {[%clk 0:01:46]}  Qf7 {[%clk 0:03:00]} 29. Be5 {[%clk 0:01:46]}  Kh7 {[%clk 0:03:00]} 30. Nf4 {[%clk 0:01:46]}  Rd7 {[%clk 0:02:19]} 31. Qh2 {[%clk 0:00:43]}  Bxg4 {[%clk 0:02:19]} 32. f3 {[%clk 0:00:43]}  Bxf3 {[%clk 0:02:19]} 33. Kf2 {[%clk 0:00:43]}  Bg4 {[%clk 0:02:19]} 34. Qg3 {[%clk 0:00:43]}  Qf5 {[%clk 0:02:19]} 35. Bxg7 {[%clk 0:00:16]}  Rxg7 {[%clk 0:01:36]} 36. Re4 {[%clk 0:00:16]}  e5 {[%clk 0:01:36]} 37. Rce1 {[%clk 0:00:16]}  Rf8 {[%clk 0:01:36]} 38. Rb1 {[%clk 0:00:16]} 0-1


[Site "http://www.Chess.com"]

[Event "FIDE World Rapid Chess Championship 2021"]
[White "Samunenkov, Ihor"]
[Black "Gabuzyan, Hovhannes"]
[WhiteFideId "14187086"]
[BlackFideId "13303732"]
[WhiteElo "2259"]
[BlackElo "2535"]
[Result "1-0"]
[Round "13"]
[TimeControl "900+10"]
[Date "2021.12.28"]
[WhiteClock "0:03:07"]
[BlackClock "0:13:17"]

1. d4 {[%clk 0:15:00]}  Nf6 {[%clk 0:15:00]} 2. g3 {[%clk 0:15:00]}  d5 {[%clk 0:15:00]} 3. Nf3 {[%clk 0:15:00]}  Bf5 {[%clk 0:15:00]} 4. c4 {[%clk 0:15:00]}  c6 {[%clk 0:15:00]} 5. Nc3 {[%clk 0:15:50]}  e6 {[%clk 0:16:05]} 6. Nh4 {[%clk 0:15:50]}  Be4 {[%clk 0:16:05]} 7. f3 {[%clk 0:15:50]}  Bg6 {[%clk 0:16:05]} 8. Qb3 {[%clk 0:15:50]}  Qb6 {[%clk 0:16:05]} 9. c5 {[%clk 0:15:50]}  Qc7 {[%clk 0:16:05]} 10. Nxg6 {[%clk 0:15:50]}  hxg6 {[%clk 0:16:05]} 11. e4 {[%clk 0:13:52]}  b6 {[%clk 0:16:05]} 12. Bf4 {[%clk 0:13:52]}  Qd8 {[%clk 0:16:05]} 13. Nxd5 {[%clk 0:12:42]}  cxd5 {[%clk 0:16:02]} 14. Bb5+ {[%clk 0:12:42]}  Nfd7 {[%clk 0:16:02]} 15. c6 {[%clk 0:10:11]}  Nxc6 {[%clk 0:15:25]} 16. Bxc6 {[%clk 0:10:11]}  dxe4 {[%clk 0:15:25]} 17. fxe4 {[%clk 0:10:11]}  Rc8 {[%clk 0:15:25]} 18. Bb7 {[%clk 0:08:21]}  g5 {[%clk 0:15:39]} 19. Bxg5 {[%clk 0:07:10]}  Qxg5 {[%clk 0:13:41]} 20. Bxc8 {[%clk 0:07:10]}  Bb4+ {[%clk 0:13:41]} 21. Qxb4 {[%clk 0:05:12]}  Qe3+ {[%clk 0:13:12]} 22. Kd1 {[%clk 0:05:12]}  Qf3+ {[%clk 0:13:12]} 23. Kc2 {[%clk 0:05:12]}  Qxe4+ {[%clk 0:13:12]} 24. Kb3 {[%clk 0:05:12]}  Qf3+ {[%clk 0:13:12]} 25. Qc3 {[%clk 0:03:07]}  Qd5+ {[%clk 0:13:17]} 26. Ka3 {[%clk 0:03:07]}  Rh5 {[%clk 0:13:17]} 27. Bxd7+ {[%clk 0:03:07]}  Kxd7 {[%clk 0:13:17]} 28. Rac1 {[%clk 0:03:07]}  Qd6+ {[%clk 0:13:17]} 29. b4 {[%clk 0:03:07]} 1-0


[Site "http://www.Chess.com"]

[Event "FIDE World Rapid Chess Championship 2021"]
[White "Blohberger, Felix"]
[Black "Jumabayev, Rinat"]
[WhiteFideId "1632051"]
[BlackFideId "13702661"]
[WhiteElo "2409"]
[BlackElo "2562"]
[Result "1/2-1/2"]
[Round "13"]
[TimeControl "900+10"]
[Date "2021.12.28"]
[WhiteClock "0:00:34"]
[BlackClock "0:00:20"]

1. d4 {[%clk 0:15:00]}  d6 {[%clk 0:15:00]} 2. e4 {[%clk 0:15:00]}  g6 {[%clk 0:15:00]} 3. Nf3 {[%clk 0:15:00]}  Bg7 {[%clk 0:15:00]} 4. Be3 {[%clk 0:15:00]}  c6 {[%clk 0:15:00]} 5. Qd2 {[%clk 0:15:09]}  Bg4 {[%clk 0:15:40]} 6. Be2 {[%clk 0:15:09]}  Nd7 {[%clk 0:15:40]} 7. c4 {[%clk 0:15:09]}  e5 {[%clk 0:15:07]} 8. d5 {[%clk 0:13:31]}  cxd5 {[%clk 0:15:07]} 9. cxd5 {[%clk 0:13:31]}  a6 {[%clk 0:12:55]} 10. Nc3 {[%clk 0:13:24]}  h5 {[%clk 0:12:55]} 11. O-O {[%clk 0:13:24]}  Bh6 {[%clk 0:12:55]} 12. Rac1 {[%clk 0:13:24]}  Bxe3 {[%clk 0:12:55]} 13. Qxe3 {[%clk 0:13:24]}  Bxf3 {[%clk 0:12:55]} 14. Qxf3 {[%clk 0:11:39]}  Ngf6 {[%clk 0:13:00]} 15. Rc2 {[%clk 0:11:39]}  O-O {[%clk 0:13:00]} 16. Qe3 {[%clk 0:11:39]}  Kg7 {[%clk 0:13:00]} 17. Rfc1 {[%clk 0:11:39]}  Rc8 {[%clk 0:13:00]} 18. Qa7 {[%clk 0:09:50]}  Nc5 {[%clk 0:13:08]} 19. b4 {[%clk 0:09:50]}  Ra8 {[%clk 0:13:08]} 20. Qxa8 {[%clk 0:09:50]}  Qxa8 {[%clk 0:13:08]} 21. bxc5 {[%clk 0:09:50]}  dxc5 {[%clk 0:13:08]} 22. Na4 {[%clk 0:09:50]}  Nxe4 {[%clk 0:13:08]} 23. Nxc5 {[%clk 0:09:50]}  Nd6 {[%clk 0:13:08]} 24. a4 {[%clk 0:09:50]}  Qd8 {[%clk 0:13:08]} 25. Rb2 {[%clk 0:08:43]}  e4 {[%clk 0:13:29]} 26. Nxb7 {[%clk 0:08:43]}  Nxb7 {[%clk 0:12:41]} 27. Rxb7 {[%clk 0:07:09]}  Qxd5 {[%clk 0:12:41]} 28. Rcc7 {[%clk 0:05:02]}  Qa5 {[%clk 0:12:22]} 29. g3 {[%clk 0:05:02]}  Qxa4 {[%clk 0:12:22]} 30. Kg2 {[%clk 0:05:02]}  e3 {[%clk 0:11:24]} 31. fxe3 {[%clk 0:04:18]}  Qa2 {[%clk 0:11:24]} 32. Kf3 {[%clk 0:04:18]}  Qd5+ {[%clk 0:11:24]} 33. e4 {[%clk 0:02:34]}  Qd2 {[%clk 0:10:21]} 34. h4 {[%clk 0:02:34]}  a5 {[%clk 0:10:21]} 35. Bc4 {[%clk 0:02:34]}  Qc3+ {[%clk 0:10:21]} 36. Kg2 {[%clk 0:02:34]}  Qc2+ {[%clk 0:10:21]} 37. Kf3 {[%clk 0:02:34]}  a4 {[%clk 0:09:43]} 38. Bd5 {[%clk 0:02:14]}  Qd1+ {[%clk 0:09:43]} 39. Kf2 {[%clk 0:02:14]}  Qd2+ {[%clk 0:09:43]} 40. Kf3 {[%clk 0:02:14]}  Qd1+ {[%clk 0:04:36]} 41. Kf2 {[%clk 0:02:25]}  a3 {[%clk 0:04:36]} 42. Rxf7+ {[%clk 0:02:25]}  Rxf7+ {[%clk 0:04:36]} 43. Rxf7+ {[%clk 0:02:25]}  Kh6 {[%clk 0:04:36]} 44. Kg2 {[%clk 0:02:25]}  g5 {[%clk 0:04:36]} 45. Rf6+ {[%clk 0:01:59]}  Kg7 {[%clk 0:03:33]} 46. hxg5 {[%clk 0:01:59]}  Qd2+ {[%clk 0:03:33]} 47. Kh3 {[%clk 0:01:59]}  Qxg5 {[%clk 0:03:33]} 48. Rf7+ {[%clk 0:01:59]}  Kg6 {[%clk 0:03:33]} 49. Rf8 {[%clk 0:01:59]}  Qd2 {[%clk 0:03:33]} 50. Ra8 {[%clk 0:01:59]}  Qd3 {[%clk 0:03:08]} 51. Rg8+ {[%clk 0:00:21]}  Kf6 {[%clk 0:03:08]} 52. Rf8+ {[%clk 0:00:21]}  Ke7 {[%clk 0:03:08]} 53. Rf7+ {[%clk 0:00:21]}  Kd6 {[%clk 0:03:08]} 54. Rf6+ {[%clk 0:00:21]}  Kc5 {[%clk 0:03:08]} 55. Rf5 {[%clk 0:00:21]}  Qe2 {[%clk 0:03:08]} 56. Rf7 {[%clk 0:00:21]}  a2 {[%clk 0:02:27]} 57. Bxa2 {[%clk 0:00:13]}  Qxa2 {[%clk 0:02:27]} 58. Rf5+ {[%clk 0:00:13]}  Kd4 {[%clk 0:02:27]} 59. Rxh5 {[%clk 0:00:13]}  Kxe4 {[%clk 0:02:27]} 60. Rh4+ {[%clk 0:00:13]}  Ke3 {[%clk 0:02:27]} 61. Rf4 {[%clk 0:00:13]}  Qe6+ {[%clk 0:02:27]} 62. Kg2 {[%clk 0:00:13]}  Qd5+ {[%clk 0:02:27]} 63. Kh2 {[%clk 0:00:13]}  Ke2 {[%clk 0:02:27]} 64. Kg1 {[%clk 0:00:13]}  Qh5 {[%clk 0:02:27]} 65. Kg2 {[%clk 0:00:13]}  Ke3 {[%clk 0:02:27]} 66. Rf2 {[%clk 0:01:01]}  Qd5+ {[%clk 0:01:23]} 67. Kg1 {[%clk 0:01:01]}  Qc6 {[%clk 0:01:23]} 68. Rf4 {[%clk 0:01:01]}  Qc1+ {[%clk 0:01:23]} 69. Kg2 {[%clk 0:01:01]}  Qd2+ {[%clk 0:01:23]} 70. Kg1 {[%clk 0:01:01]}  Qc2 {[%clk 0:01:23]} 71. Kh1 {[%clk 0:01:01]}  Ke2 {[%clk 0:01:23]} 72. Kg1 {[%clk 0:00:56]}  Qc5+ {[%clk 0:00:09]} 73. Kg2 {[%clk 0:00:56]}  Qd5+ {[%clk 0:00:09]} 74. Kg1 {[%clk 0:00:56]}  Qd3 {[%clk 0:00:09]} 75. Kg2 {[%clk 0:00:56]}  Ke1 {[%clk 0:00:09]} 76. Kh2 {[%clk 0:00:56]}  Qe2+ {[%clk 0:00:09]} 77. Kg1 {[%clk 0:00:56]}  Qe3+ {[%clk 0:00:09]} 78. Kg2 {[%clk 0:00:56]}  Qd2+ {[%clk 0:00:09]} 79. Kg1 {[%clk 0:00:56]}  Qe2 {[%clk 0:00:09]} 80. Kh1 {[%clk 0:00:56]}  Qh5+ {[%clk 0:00:09]} 81. Kg2 {[%clk 0:00:56]}  Ke2 {[%clk 0:00:09]} 82. Rf2+ {[%clk 0:00:56]}  Ke3 {[%clk 0:00:09]} 83. Rf4 {[%clk 0:01:32]}  Qh8 {[%clk 0:00:27]} 84. Rf3+ {[%clk 0:01:32]}  Ke4 {[%clk 0:00:27]} 85. Rf4+ {[%clk 0:01:32]}  Ke5 {[%clk 0:00:27]} 86. Rh4 {[%clk 0:01:32]}  Qa8+ {[%clk 0:00:27]} 87. Kh2 {[%clk 0:01:32]}  Qa2+ {[%clk 0:00:27]} 88. Kh3 {[%clk 0:01:32]}  Qf2 {[%clk 0:00:27]} 89. Rf4 {[%clk 0:01:32]}  Qg1 {[%clk 0:00:27]} 90. Kg4 {[%clk 0:01:32]}  Qg2 {[%clk 0:00:27]} 91. Kh4 {[%clk 0:01:32]}  Qh2+ {[%clk 0:00:27]} 92. Kg4 {[%clk 0:01:32]}  Qh1 {[%clk 0:00:27]} 93. Rf2 {[%clk 0:01:32]}  Ke4 {[%clk 0:00:27]} 94. Re2+ {[%clk 0:01:33]}  Kd3 {[%clk 0:00:54]} 95. Rf2 {[%clk 0:01:33]}  Ke3 {[%clk 0:00:54]} 96. Rf4 {[%clk 0:01:33]}  Ke2 {[%clk 0:00:54]} 97. Rf5 {[%clk 0:01:33]}  Qe4+ {[%clk 0:00:54]} 98. Rf4 {[%clk 0:01:33]}  Qg2 {[%clk 0:00:54]} 99. Rf5 {[%clk 0:01:24]}  Qh1 {[%clk 0:00:10]} 100. Rf4 {[%clk 0:01:24]}  Ke3 {[%clk 0:00:10]} 101. Rf5 {[%clk 0:01:24]}  Qd1+ {[%clk 0:00:10]} 102. Kh4 {[%clk 0:01:24]}  Qd8+ {[%clk 0:00:10]} 103. Kh5 {[%clk 0:01:24]}  Qh8+ {[%clk 0:00:10]} 104. Kg4 {[%clk 0:01:24]}  Qg7+ {[%clk 0:00:10]} 105. Kh4 {[%clk 0:01:24]}  Qh6+ {[%clk 0:00:10]} 106. Kg4 {[%clk 0:00:25]}  Qg6+ {[%clk 0:00:20]} 107. Rg5 {[%clk 0:00:25]}  Qe6+ {[%clk 0:00:20]} 108. Kh4 {[%clk 0:00:34]}  Kf3 {[%clk 0:00:20]} 109. Kh5 {[%clk 0:00:34]}  Kg2 {[%clk 0:00:20]} 110. Rg6 {[%clk 0:00:34]}  Qh3+ {[%clk 0:00:20]} 1/2-1/2


[Site "http://www.Chess.com"]

[Event "FIDE World Rapid Chess Championship 2021"]
[White "Murzin, Volodar"]
[Black "Mikhalevski, Victor"]
[WhiteFideId "44155573"]
[BlackFideId "2801914"]
[WhiteElo "2523"]
[BlackElo "2366"]
[Result "0-1"]
[Round "13"]
[TimeControl "900+10"]
[Date "2021.12.28"]
[WhiteClock "0:01:23"]
[BlackClock "0:10:49"]

1. e4 {[%clk 0:15:00]}  e5 {[%clk 0:15:00]} 2. Nf3 {[%clk 0:15:00]}  Nc6 {[%clk 0:15:00]} 3. Bc4 {[%clk 0:15:00]}  Bc5 {[%clk 0:15:00]} 4. O-O {[%clk 0:15:00]}  Nf6 {[%clk 0:15:00]} 5. d3 {[%clk 0:15:00]}  a5 {[%clk 0:15:45]} 6. a4 {[%clk 0:15:49]}  h6 {[%clk 0:15:45]} 7. Re1 {[%clk 0:15:49]}  d6 {[%clk 0:15:45]} 8. Nbd2 {[%clk 0:15:49]}  Ng4 {[%clk 0:15:45]} 9. Re2 {[%clk 0:14:22]}  O-O {[%clk 0:15:01]} 10. h3 {[%clk 0:14:22]}  Nf6 {[%clk 0:15:01]} 11. Nf1 {[%clk 0:14:22]}  Nh5 {[%clk 0:15:01]} 12. Be3 {[%clk 0:14:22]}  Qf6 {[%clk 0:15:01]} 13. Bxc5 {[%clk 0:14:22]}  dxc5 {[%clk 0:15:01]} 14. Re3 {[%clk 0:14:22]}  Nf4 {[%clk 0:14:17]} 15. h4 {[%clk 0:13:35]}  Nd4 {[%clk 0:14:17]} 16. g3 {[%clk 0:11:58]}  Bg4 {[%clk 0:13:54]} 17. N1h2 {[%clk 0:11:58]}  Nxf3+ {[%clk 0:13:54]} 18. Rxf3 {[%clk 0:10:51]}  Bxf3 {[%clk 0:13:08]} 19. Qxf3 {[%clk 0:10:51]}  Ng6 {[%clk 0:13:08]} 20. Qxf6 {[%clk 0:10:51]}  gxf6 {[%clk 0:13:08]} 21. Ng4 {[%clk 0:10:51]}  Kg7 {[%clk 0:13:08]} 22. Ne3 {[%clk 0:10:51]}  Ne7 {[%clk 0:13:08]} 23. Rf1 {[%clk 0:10:51]}  c6 {[%clk 0:13:08]} 24. h5 {[%clk 0:06:59]}  Rab8 {[%clk 0:12:37]} 25. f4 {[%clk 0:06:59]}  b5 {[%clk 0:12:37]} 26. axb5 {[%clk 0:06:59]}  cxb5 {[%clk 0:12:37]} 27. Ba2 {[%clk 0:06:59]}  c4 {[%clk 0:12:37]} 28. dxc4 {[%clk 0:06:59]}  bxc4 {[%clk 0:12:37]} 29. Nxc4 {[%clk 0:06:59]}  Nc6 {[%clk 0:12:29]} 30. c3 {[%clk 0:05:59]}  a4 {[%clk 0:12:29]} 31. Rf2 {[%clk 0:05:59]}  exf4 {[%clk 0:12:29]} 32. gxf4 {[%clk 0:05:59]}  Rb5 {[%clk 0:12:29]} 33. Nd6 {[%clk 0:04:47]}  Rxh5 {[%clk 0:11:26]} 34. Rg2+ {[%clk 0:04:47]}  Kh8 {[%clk 0:11:26]} 35. e5 {[%clk 0:04:47]}  Nd8 {[%clk 0:11:28]} 36. exf6 {[%clk 0:02:52]}  Rg8 {[%clk 0:11:28]} 37. Nxf7+ {[%clk 0:02:52]}  Nxf7 {[%clk 0:10:49]} 38. Bxf7 {[%clk 0:01:23]}  Rxg2+ {[%clk 0:10:49]} 39. Kxg2 {[%clk 0:01:23]}  Rb5 {[%clk 0:10:49]} 0-1


[Site "http://www.Chess.com"]

[Event "FIDE World Rapid Chess Championship 2021"]
[White "Dziuba, Marcin"]
[Black "Christiansen, Johan-Sebastian"]
[WhiteFideId "1112953"]
[BlackFideId "1512668"]
[WhiteElo "2424"]
[BlackElo "2522"]
[Result "0-1"]
[Round "13"]
[TimeControl "900+10"]
[Date "2021.12.28"]
[WhiteClock "0:02:42"]
[BlackClock "0:06:56"]

1. d4 {[%clk 0:15:00]}  d5 {[%clk 0:15:00]} 2. c4 {[%clk 0:15:00]}  dxc4 {[%clk 0:15:00]} 3. Nf3 {[%clk 0:15:00]}  Nf6 {[%clk 0:15:00]} 4. e3 {[%clk 0:15:00]}  b5 {[%clk 0:15:00]} 5. a4 {[%clk 0:15:38]}  b4 {[%clk 0:15:57]} 6. Bxc4 {[%clk 0:15:38]}  e6 {[%clk 0:15:57]} 7. b3 {[%clk 0:15:38]}  Be7 {[%clk 0:15:57]} 8. Bb2 {[%clk 0:15:38]}  O-O {[%clk 0:15:57]} 9. O-O {[%clk 0:15:38]}  Bb7 {[%clk 0:15:57]} 10. Nbd2 {[%clk 0:15:38]}  Nbd7 {[%clk 0:15:57]} 11. Be2 {[%clk 0:15:38]}  c5 {[%clk 0:15:57]} 12. Nc4 {[%clk 0:15:38]}  Rc8 {[%clk 0:15:57]} 13. Nfe5 {[%clk 0:15:38]}  cxd4 {[%clk 0:16:28]} 14. Bxd4 {[%clk 0:14:52]}  Nc5 {[%clk 0:16:28]} 15. Rc1 {[%clk 0:13:30]}  Nd5 {[%clk 0:14:43]} 16. Bf3 {[%clk 0:13:30]}  Ba6 {[%clk 0:14:43]} 17. Re1 {[%clk 0:11:59]}  f6 {[%clk 0:14:37]} 18. e4 {[%clk 0:06:17]}  Nc3 {[%clk 0:13:59]} 19. Bxc3 {[%clk 0:06:17]}  bxc3 {[%clk 0:13:59]} 20. Ng4 {[%clk 0:06:17]}  Nd3 {[%clk 0:13:34]} 21. Nge3 {[%clk 0:04:29]}  Nxc1 {[%clk 0:13:34]} 22. Qxc1 {[%clk 0:04:43]}  Bb4 {[%clk 0:10:52]} 23. Be2 {[%clk 0:04:43]}  Qe7 {[%clk 0:10:52]} 24. h4 {[%clk 0:04:43]}  Rfd8 {[%clk 0:10:52]} 25. h5 {[%clk 0:04:43]}  Bb7 {[%clk 0:10:52]} 26. Bf3 {[%clk 0:04:13]}  Rd7 {[%clk 0:09:25]} 27. Nc2 {[%clk 0:04:13]}  Rcd8 {[%clk 0:09:25]} 28. Qf4 {[%clk 0:04:13]}  Bc5 {[%clk 0:07:49]} 29. Bg4 {[%clk 0:03:39]}  Ba6 {[%clk 0:07:49]} 30. N2e3 {[%clk 0:03:39]}  Rd4 {[%clk 0:07:49]} 31. Qf3 {[%clk 0:02:42]}  Bb7 {[%clk 0:06:56]} 32. Qh3 {[%clk 0:02:42]}  Rxe4 {[%clk 0:06:56]} 33. Rc1 {[%clk 0:02:42]}  f5 {[%clk 0:06:56]} 34. Bf3 {[%clk 0:02:42]}  Rh4 {[%clk 0:06:56]} 0-1


[Site "http://www.Chess.com"]